Workbook

Sheet 원가계산서 (hidden)
A1: 원 가 계 산 서
A3: [사업명] 여수시 도시형폐기물 종합처리시설 소각시설 화격자 제작·구매 및 설치
A4: 구분 | D4: 금액 | E4: 구 성 비 | G4: 비고
A5: 설 치 원 가 | B5: 재 료 비 | C5: 직 접 재 료 비 | D5: 0
C6: 간 접 재 료 비 | D6: 0
C7: [소 계] | D7: =SUM(D5:D6) -> 0
B8: 노 무 비 | C8: 직 접 노 무 비 | D8: =내역서!N19 -> 0
C9: 간 접 노 무 비 | D9: =D8*F9 -> 0 | E9: (직업노무비) × 율 | F9: 15.0%
C10: [소 계] | D10: =SUM(D8:D9) -> 0
B11: 경 비 | C11: 산재보험료 | D11: =D10*F11 -> 0 | E11: (노무비) × 율 | F11: 3.56%
C12: 고용보험료 | D12: =D10*F12 -> 0 | E12: (노무비) × 율 | F12: 1.01%
C13: 환경보전비 | D13: =(D7+D8)*F13 -> 0 | E13: (재료비 + 직접노무비) × 율 | F13: 0.40%
C14: 퇴 직 공 제 부 금 비 | D14: =D8*F14 -> 0 | E14: (직접노무비) × 율 | F14: 2.30%
C15: 산업안전 보건관리비 | D15: =(D7+D8)*F15 -> 0 | E15: 1. (재료비 + 직접노무비 + 도급자관급) × 율 2. ((재료비 + 직접노무비) × 율) < 1.2 중 작은금액 > | F15: 3.11%
C16: 기 타 경 비 | D16: =(D7+D10)*F16 -> 0 | E16: (재료비 + 노무비) × 율 | F16: 4.60%
C19: [소 계] | D19: =SUM(D11:D18) -> 0
B20: 계 | D20: =D7+D10+D19 -> 0
A21: 일반관리비 | D21: =(D7+D10+D19)*F21 -> 0 | E21: (재료비 + 노무비 + 경비) × 율 | F21: 8%
A22: 이 윤 | D22: =(D10+D19+D21)*F22 -> 0 | E22: (노무비 + 경비 + 일반관리비) × 율 | F22: 15%
A23: 물품구입비 | D23: =내역서!N13 -> 0
A24: 공 급 가 액 | D24: =ROUNDDOWN(D20+D21+D22+D23,-3) -> 0 | E24: 설치원가 + 일반관리비 + 이윤 + 물품구입비 | G24: 천원단위 절사
A25: 부가가치세 | D25: =D24*F25 -> 0 | E25: (공급가액) × 율 | F25: 10%
A27: 총 공 사 비 | D27: =D25+D24 -> 0

Sheet 내역서 (hidden)
A1: 내 역 서
A3: =원가계산서!A3 -> [사업명] 여수시 도시형폐기물 종합처리시설 소각시설 화격자 제작·구매 및 설치
A4: 품 명 | B4: 재질 | C4: 단위중량 | D4: 중량 | E4: 단 위 | F4: 수 량 | G4: 재료비 | I4: 노무비 | K4: 경비 | M4: 합계 | O4: 비 고
C5: kg | D5: kg | G5: 단 가 | H5: 금 액 | I5: 단 가 | J5: 금 액 | K5: 단 가 | L5: 금 액 | M5: 단 가 | N5: 금 액
A6: 화격자 제작·구매 및 설치
A7: =산출내역서!A6 -> 1. 화격자 제작
A8: =산출내역서!A7 -> 1.1. 화격자 | B8: =산출근거!B7 -> TH901 | C8: =산출근거!C29 -> 376.5 | D8: =산출근거!I29 -> 10,587 | E8: 식 | F8: 1 | G8: =산출내역서!H32 -> 0 | H8: =F8*G8 -> 0 | I8: =산출내역서!J32 -> 0 | J8: =F8*I8 -> 0 | K8: =산출내역서!L32 -> 0 | L8: =F8*K8 -> 0 | M8: =G8+I8+K8 -> 0 | N8: =F8*M8 -> 0
A9: =산출내역서!A36 -> 1.2. 화격자 부속품비 | E9: 식 | F9: 1 | G9: =산출내역서!H65 -> 0 | H9: =F9*G9 -> 0 | I9: =산출내역서!J65 -> 0 | J9: =F9*I9 -> 0 | K9: =산출내역서!L65 -> 0 | L9: =F9*K9 -> 0 | M9: =G9+I9+K9 -> 0 | N9: =F9*M9 -> 0
A10: =산출내역서!A69 -> 1.3. 화격자 검사비 | E10: 식 | F10: 1 | K10: =산출내역서!L98 -> 0 | L10: 0 | M10: 0 | N10: 0
A11: =산출내역서!A102 -> 1.4. 일반관리비 | B11: (재료비 + 노무비 + 경비) × 율 | N11: =산출내역서!N102 -> 0
A12: =산출내역서!A104 -> 1.5. 이윤 | B12: (노무비 + 경비 + 일반관리비) × 율 | N12: =산출내역서!N104 -> 0
A13: [소 계] | N13: =SUM(N8:N12) -> 0
A16: =산출내역서!A135 -> 2. 화격자 교체비
A17: =산출내역서!A136 -> 2.1. 화격자 설치비 | E17: 식 | F17: 1 | I17: =산출내역서!J142 -> 0 | J17: =F17*I17 -> 0 | M17: =G17+I17+K17 -> 0 | N17: =F17*M17 -> 0
A18: =산출내역서!A144 -> 2.2. 화격자 철거비 | E18: 식 | F18: 1 | I18: =산출내역서!J146 -> 0 | J18: =F18*I18 -> 0 | M18: =G18+I18+K18 -> 0 | N18: =F18*M18 -> 0
A19: [소 계] | N19: =SUM(N17:N18) -> 0
A32: [합 계] | H32: =H11+H16 -> 0 | I32: =I11+I16 -> 0 | J32: 0 | K32: 0 | L32: 0 | N32: =N13+N19 -> 0

Sheet 산출내역서
A1: 산 출 내 역 서
A3: =원가계산서!A3 -> [사업명] 여수시 도시형폐기물 종합처리시설 소각시설 화격자 제작·구매 및 설치
A4: 품 명 | B4: 재질 | C4: 단위중량 | D4: 중량 | E4: 단 위 | F4: 수 량 | G4: 재료비 | I4: 노무비 | K4: 경비 | M4: 합계 | O4: 비 고
C5: kg | D5: kg | G5: 단 가 | H5: 금 액 | I5: 단 가 | J5: 금 액 | K5: 단 가 | L5: 금 액 | M5: 단 가 | N5: 금 액
A6: 1. 화격자 제작
A7: 1.1. 화격자
A8: FIXED UPPER ROASTER | B8: TH901 | C8: 14.7 | D8: 279 | E8: EA | F8: 19 | H8: =F8*G8 -> 0 | J8: =F8*I8 -> 0 | L8: =F8*K8 -> 0 | M8: =G8+I8+K8 -> 0 | N8: =F8*M8 -> 0
A9: SLIDE UPPER ROASTER | B9: TH901 | C9: 16.4 | D9: 361 | E9: EA | F9: 22 | H9: =F9*G9 -> 0 | J9: =F9*I9 -> 0 | L9: =F9*K9 -> 0 | M9: =G9+I9+K9 -> 0 | N9: =F9*M9 -> 0
A10: UPPER ROASTER COVER | B10: TH901 | C10: 7.8 | D10: 304 | E10: EA | F10: 39 | H10: 0 | J10: 0 | L10: 0 | M10: 0 | N10: 0
A11: FIXED MIDDLE ROASTER | B11: TH901 | C11: 22.9 | D11: 2,405 | E11: EA | F11: 105 | H11: 0 | J11: 0 | L11: 0 | M11: 0 | N11: 0
A12: SLIDE MIDDLE ROASTER | B12: TH901 | C12: 25.4 | D12: 1,524 | E12: EA | F12: 60 | H12: 0 | J12: 0 | L12: 0 | M12: 0 | N12: 0
A13: RIGHT SLIDE MIDDLE ROASTER | B13: TH901 | C13: 25.6 | D13: 922 | E13: EA | F13: 36 | H13: 0 | J13: 0 | L13: 0 | M13: 0 | N13: 0
A14: LEFT SLIDE MIDDLE ROASTER | B14: TH901 | C14: 25.6 | D14: 922 | E14: EA | F14: 36 | H14: 0 | J14: 0 | L14: 0 | M14: 0 | N14: 0
A15: FIXED END ROASTER | B15: TH901 | C15: 13 | D15: 273 | E15: EA | F15: 21 | H15: 0 | J15: 0 | L15: 0 | M15: 0 | N15: 0
A16: SLIDE END ROASTER | B16: TH901 | C16: 19 | D16: 399 | E16: EA | F16: 21 | H16: 0 | J16: 0 | L16: 0 | M16: 0 | N16: 0
A17: FIXED HOR. ROASTER | B17: TH901 | C17: 18 | D17: 324 | E17: EA | F17: 18 | H17: 0 | J17: 0 | L17: 0 | M17: 0 | N17: 0
A18: FIXED HOR. ROASTER CAP | B18: TH901 | C18: 18 | D18: 324 | E18: EA | F18: 18 | H18: 0 | J18: 0 | L18: 0 | M18: 0 | N18: 0
A19: SLIDE HOR. ROASTER | B19: TH901 | C19: 18 | D19: 270 | E19: EA | F19: 15 | H19: 0 | J19: 0 | L19: 0 | M19: 0 | N19: 0
A20: APRON | B20: TH901 | C20: 18 | D20: 972 | E20: EA | F20: 54 | H20: 0 | J20: 0 | L20: 0 | M20: 0 | N20: 0
A21: APRON SEAL BLOCK(A) | B21: TH901 | C21: 8 | D21: 312 | E21: EA | F21: 39 | H21: 0 | J21: 0 | L21: 0 | M21: 0 | N21: 0
A22: APRON SEAL BLOCK(B) | B22: TH901 | C22: 8 | D22: 24 | E22: EA | F22: 3 | H22: 0 | J22: 0 | L22: 0 | M22: 0 | N22: 0
A23: 100mm UPPER ROASTER | B23: TH901 | C23: 12.6 | D23: 76 | E23: EA | F23: 6 | H23: 0 | J23: 0 | L23: 0 | M23: 0 | N23: 0
A24: 100mm MIDDLE ROASTER | B24: TH901 | C24: 14.6 | D24: 438 | E24: EA | F24: 30 | H24: 0 | J24: 0 | L24: 0 | M24: 0 | N24: 0
A25: 100mm END ROASTER | B25: TH901 | C25: 10.1 | D25: 101 | E25: EA | F25: 10 | H25: 0 | J25: 0 | L25: 0 | M25: 0 | N25: 0
A26: 300mm RIGHT HOR. ROASTER | B26: TH901 | C26: 31 | D26: 93 | E26: EA | F26: 3 | H26: 0 | J26: 0 | L26: 0 | M26: 0 | N26: 0
A27: 300mm LEFT HOR. ROASTER | B27: TH901 | C27: 31 | D27: 93 | E27: EA | F27: 3 | H27: 0 | J27: 0 | L27: 0 | M27: 0 | N27: 0
A28: 100mm HOR. ROASTER CAP | B28: TH901 | C28: 7.9 | D28: 63 | E28: EA | F28: 8 | H28: 0 | J28: 0 | L28: 0 | M28: 0 | N28: 0
A29: 100mm APRON | B29: TH901 | C29: 10.9 | D29: 109 | E29: EA | F29: 10 | H29: 0 | J29: 0 | L29: 0 | M29: 0 | N29: =F29*M29 -> 0
A32: [합 계] | D32: =SUM(D8:D29) -> 10,587 | F32: =SUM(F8:F29) -> 576 | G32: 0 | H32: 0 | I32: 0 | J32: 0 | K32: 0 | L32: 0 | M32: =SUM(M8:M29) -> 0 | N32: 0
A34: 품 명 | B34: 재질 | C34: 단위중량 | D34: 중량 | E34: 단 위 | F34: 수 량 | G34: 재료비 | I34: 노무비 | K34: 경비 | M34: 합계 | O34: 비 고
C35: kg | D35: kg | G35: 단 가 | H35: 금 액 | I35: 단 가 | J35: 금 액 | K35: 단 가 | L35: 금 액 | M35: 단 가 | N35: 금 액
A36: 1.2. 화격자 부속품비
A37: UPPER ROASTER POSITON PIN | B37: SS400 | E37: EA | F37: 39 | H37: =F37*G37 -> 0 | J37: =F37*I37 -> 0 | L37: =F37*K37 -> 0 | M37: =G37+I37+K37 -> 0 | N37: =F37*M37 -> 0
A38: UPPER ROASTER SPLIT PIN | B38: STS304 | E38: EA | F38: 39 | H38: =F38*G38 -> 0 | J38: =F38*I38 -> 0 | L38: =F38*K38 -> 0 | M38: =G38+I38+K38 -> 0 | N38: =F38*M38 -> 0
A39: FIXED HOR. ROASTER용 B/S.W | B39: STS304 | E39: SET | F39: 36 | H39: 0 | J39: 0 | L39: 0 | M39: 0 | N39: 0
A40: FIXED HOR. ROASTER CAP용 B/S.W | B40: STS304 | E40: SET | F40: 72 | H40: 0 | J40: 0 | L40: 0 | M40: 0 | N40: 0
A41: SLIDE HOR. ROASTER용 B/S.W | B41: STS304 | E41: SET | F41: 30 | H41: 0 | J41: 0 | L41: 0 | M41: 0 | N41: 0
A42: APRON SEAL BLOCK(A)용 | B42: STS305 | E42: SET | F42: 117 | H42: 0 | J42: 0 | L42: 0 | M42: 0 | N42: 0
A43: APRON SEAL BLOCK(B)용 BOLT/S.W | B43: STS304 | E43: SET | F43: 3 | H43: 0 | J43: 0 | L43: 0 | M43: 0 | N43: 0
A44: 100mm UPPER ROASTER용 BOLT/S.W | B44: STS304 | E44: SET | F44: 6 | H44: 0 | J44: 0 | L44: 0 | M44: 0 | N44: 0
A45: 100mm MIDDLE ROASTER용 BOLT/S.W | B45: STS304 | E45: SET | F45: 30 | H45: 0 | J45: 0 | L45: 0 | M45: 0 | N45: 0
A46: 100mm END ROASTER용 BOLT/W | B46: STS304 | E46: SET | F46: 10 | H46: 0 | J46: 0 | L46: 0 | M46: 0 | N46: 0
A47: 300mm HOR. ROASTER(R.H)용 B/S.W | B47: STS304 | E47: SET | F47: 6 | H47: 0 | J47: 0 | L47: 0 | M47: 0 | N47: 0
A48: 300mm HOR. ROASTER(L.H)용 B/S.W | B48: STS304 | E48: SET | F48: 6 | H48: 0 | J48: 0 | L48: 0 | M48: 0 | N48: 0
A49: 100mm HOR. ROASTER CAP용 B/S.W | B49: STS304 | E49: SET | F49: 16 | H49: 0 | J49: 0 | L49: 0 | M49: 0 | N49: 0
A65: [합 계] | F65: =SUM(F37:F64) -> 410 | G65: =SUM(G37:G64) -> 0 | H65: =SUM(H37:H64) -> 0 | I65: 0 | J65: 0 | K65: 0 | L65: 0 | M65: 0 | N65: 0
A67: 품 명 | B67: 재질 | C67: 단위중량 | D67: 중량 | E67: 단 위 | F67: 수 량 | G67: 재료비 | I67: 노무비 | K67: 경비 | M67: 합계 | O67: 비 고
C68: kg | D68: kg | G68: 단 가 | H68: 금 액 | I68: 단 가 | J68: 금 액 | K68: 단 가 | L68: 금 액 | M68: 단 가 | N68: 금 액
A69: 1.3. 화격자 검사비
A70: 1.3.1. 비파괴 검사 | B70: ※ 공인기관 성적서 제출 조건 | E70: 576
A71: MT(자분탐방검사) | B71: 전체 수량의 30% 검사 실시 | E71: EA | F71: =F32*0.3 -> 172.8 | L71: =F71*K71 -> 0 | M71: =G71+I71+K71 -> 0 | N71: =F71*M71 -> 0
A72: RT(방사선투과검사) | B72: 전체 수량의 10% 검사 실시 | E72: EA | F72: =F32*0.1 -> 57.6 | L72: =F72*K72 -> 0 | M72: 0 | N72: 0
A73: [소 계] | K73: =SUM(K71:K72) -> 0 | L73: =SUM(L71:L72) -> 0 | M73: 0 | N73: 0
A75: 1.3.2. 소재 검사 | B75: ※ 공인기관 성적서 제출 조건
B76: 1 CHARGE에 1회 실시 | E76: 식 | F76: 1 | L76: =F76*K76 -> 0 | M76: 0 | N76: 0
A78: [소 계] | K78: =K76 -> 0 | L78: =L76 -> 0 | M78: 0 | N78: 0
A98: [합 계] | K98: =K73+K78 -> 0 | L98: =L73+L78 -> 0 | M98: 0 | N98: 0
A100: 품 명 | B100: 재질 | C100: 단위중량 | D100: 중량 | E100: 단 위 | F100: 수 량 | G100: 재료비 | I100: 노무비 | K100: 경비 | M100: 합계 | O100: 비 고
C101: kg | D101: kg | G101: 단 가 | H101: 금 액 | I101: 단 가 | J101: 금 액 | K101: 단 가 | L101: 금 액 | M101: 단 가 | N101: 금 액
A102: 1.4. 일반관리비 | B102: (재료비 + 노무비 + 경비) × 율 | E102: % | F102: 8% | H102: =H32+H65+H98 -> 0 | J102: =J32+J65+J98 -> 0 | L102: 0 | N102: =(H102+J102+L102)*F102 -> 0
A104: 1.5. 이윤 | B104: (노무비 + 경비 + 일반관리비) × 율 | E104: % | F104: 15% | J104: =J32+J65+J98 -> 0 | L104: =L32+L65+L98 -> 0 | N104: =(N102+J104+L104)*F104 -> 0
A133: 품 명 | B133: 재질 | C133: 단위중량 | D133: 중량 | E133: 단 위 | F133: 수 량 | G133: 재료비 | I133: 노무비 | K133: 경비 | M133: 합계 | O133: 비 고
C134: kg | D134: kg | G134: 단 가 | H134: 금 액 | I134: 단 가 | J134: 금 액 | K134: 단 가 | L134: 금 액 | M134: 단 가 | N134: 금 액
A135: 2. 화격자 교체비 | B135: ※ 건설공사표준품셈 기계설비부분 13-8-1 소각로 설치
A136: 2.1. 화격자 설치비 | B136: 화격자 중량 | D136: 10.59 | E136: 톤
A137: 프렌트 기계설치공 | D137: 4.81 | E137: 인/톤 | F137: =D136*D137 -> 50.92 | J137: =F137*I137 -> 0
A138: 프렌트 제관공 | D138: 2.16 | E138: 인/톤 | F138: =D136*D138 -> 22.87 | J138: =F138*I138 -> 0
A139: 프렌트 용접공 | D139: 1.16 | E139: 인/톤 | F139: =D136*D139 -> 12.28 | J139: 0
A140: 특별인부 | D140: 2.39 | E140: 인/톤 | F140: =D136*D140 -> 25.30 | J140: 0
A141: 보통인부 | D141: 7.00 | E141: 인/톤 | F141: =D136*D141 -> 74.11 | J141: 0
A142: [소 계] | J142: =SUM(J137:J141) -> 0
A144: 2.2. 화격자 철거비 | B144: ※ 건설공사표준품셈 유지관리부분 4-1-7 일반기계 철거 및 이설 | J144: =(J137+J138+J139+J140+J141)*0.4 -> 0
B145: 철골류 50%
A146: [소 계] | J146: =SUM(J144:J145) -> 0
A164: [합 계] | G164: =G142+G146 -> 0 | H164: 0 | I164: 0 | J164: 0 | K164: 0 | L164: 0

Sheet 일위대가목록 (hidden)
A1: 일 위 대 가 목 록
A3: =원가계산서!A3 -> [사업명] 여수시 도시형폐기물 종합처리시설 소각시설 화격자 제작·구매 및 설치
A4: 품 명 | C4: 규 격 | E4: 단 위 | F4: 수 량 | G4: 재료비 | I4: 노무비 | K4: 경비 | M4: 물가정보 | O4: 적용단가 | Q4: 비 고
G5: 단 가 | H5: 금 액 | I5: 단 가 | J5: 금 액 | K5: 단 가 | L5: 금 액 | M5: 단 가 | N5: 금 액 | O5: 단 가 | P5: 금 액
A6: 1. 화격자 설치 | E6: 톤 | F6: 1 | Q6: 기계설비부분 13-8-5
A7: 2. 화격자 철거 | E7: 톤 | F7: 1 | Q7: 유지관리부분 4-1-7

Sheet 일위대가 (hidden)
A1: 일 위 대 가
A3: =원가계산서!A3 -> [사업명] 여수시 도시형폐기물 종합처리시설 소각시설 화격자 제작·구매 및 설치
A4: 품 명 | C4: 규 격 | E4: 단 위 | F4: 수 량 | G4: A 업체 견적 | I4: B 업체 견적 | K4: C 업체 견적 | M4: 물가정보 | O4: 적용단가 | Q4: 비 고
G5: 단 가 | H5: 금 액 | I5: 단 가 | J5: 금 액 | K5: 단 가 | L5: 금 액 | M5: 단 가 | N5: 금 액 | O5: 단 가 | P5: 금 액
A6: 1. 화격자 설치 | C6: 기계설비부분 13-8-5 | Q6: 일위대가 제 1호표
A7: 1.1. 플랜트기계설치공 | E7: 인/톤 | F7: 4.81 | M7: =노임단가!E10 -> 236,640 | N7: =F7*M7 -> 1,138,238 | Q7: 노임단가
A8: 1.2. 플랜트제관공 | E8: 인/톤 | F8: 2.16 | M8: =노임단가!E8 -> 259,128 | N8: =F8*M8 -> 559,716 | Q8: 노임단가
A9: 1.4. 특별인부 | E9: 인/톤 | F9: 2.39 | M9: =노임단가!E6 -> 221,506 | N9: 529,399 | Q9: 노임단가
A10: 1.5. 플랜트용접공 | E10: 인/톤 | F10: 1.16 | M10: =노임단가!E9 -> 299,776 | N10: 347,740 | Q10: 노임단가
A12: [합 계] | N12: =SUM(N7:N11) -> 2,575,094
A14: 2. 화격자 철거 | C14: 유지관리부분 4-1-7(50%) | Q14: 일위대가 제 2호표
A15: 2.1. 플랜트기계설치공 | E15: 인/톤 | F15: =F7*0.5 -> 2.41 | M15: =노임단가!E10 -> 236,640 | N15: 569,119 | Q15: 노임단가
A16: 2.2. 플랜트제관공 | E16: 인/톤 | F16: =F8*0.5 -> 1.08 | M16: =노임단가!E8 -> 259,128 | N16: 279,858 | Q16: 노임단가
A17: 2.4. 특별인부 | E17: 인/톤 | F17: =F9*0.5 -> 1.20 | M17: =노임단가!E6 -> 221,506 | N17: 264,700 | Q17: 노임단가
A18: 2.5. 플랜트용접공 | E18: 인/톤 | F18: =F10*0.5 -> 0.58 | M18: =노임단가!E9 -> 299,776 | N18: 173,870 | Q18: 노임단가
A20: [합 계] | N20: =SUM(N15:N19) -> 1,287,547

Sheet 산출근거 (hidden)
A1: 산 출 근 거
A3: =원가계산서!A3 -> [사업명] 여수시 도시형폐기물 종합처리시설 소각시설 화격자 제작·구매 및 설치
A4: 품 명 | B4: 재 질 | C4: 단위중량 | D4: 수 량 | H4: 소 계 | J4: 비 고
C5: kg | D5: 건조단 | E5: 연소단 | F5: 후연소단 | G5: S/P | H5: 수량(EA) | I5: 중량(kg)
A6: 1. 화격자
A7: FIXED UPPER ROASTER | B7: TH901 | C7: 14.7 | D7: 6 | E7: 6 | F7: 6 | G7: 1 | H7: =SUM(D7,E7,F7,G7) -> 19 | I7: =C7*H7 -> 279
A8: SLIDE UPPER ROASTER | B8: TH901 | C8: 16.4 | D8: 7 | E8: 7 | F8: 7 | G8: 1 | H8: =SUM(D8,E8,F8,G8) -> 22 | I8: =C8*H8 -> 361
A9: UPPER ROASTER COVER | B9: TH901 | C9: 7.8 | D9: 13 | E9: 13 | F9: 13 | G9: 0 | H9: 39 | I9: 304
A10: FIXED MIDDLE ROASTER | B10: TH901 | C10: 22.9 | D10: 30 | E10: 30 | F10: 30 | G10: 15 | H10: 105 | I10: 2,405
A11: SLIDE MIDDLE ROASTER | B11: TH901 | C11: 25.4 | D11: 5 | E11: 5 | F11: 35 | G11: 15 | H11: 60 | I11: 1,524
A12: RIGHT SLIDE MIDDLE ROASTER | B12: TH901 | C12: 25.6 | D12: 15 | E12: 15 | F12: 0 | G12: 6 | H12: 36 | I12: 922
A13: LEFT SLIDE MIDDLE ROASTER | B13: TH901 | C13: 25.6 | D13: 15 | E13: 15 | F13: 0 | G13: 6 | H13: 36 | I13: 922
A14: FIXED END ROASTER | B14: TH901 | C14: 13.0 | D14: 6 | E14: 6 | F14: 6 | G14: 3 | H14: 21 | I14: 273
A15: SLIDE END ROASTER | B15: TH901 | C15: 19.0 | D15: 7 | E15: 7 | F15: 7 | G15: 0 | H15: 21 | I15: 399
A16: FIXED HOR. ROASTER | B16: TH901 | C16: 18.0 | D16: 6 | E16: 6 | F16: 6 | G16: 0 | H16: 18 | I16: 324
A17: FIXED HOR. ROASTER CAP | B17: TH901 | C17: 18.0 | D17: 6 | E17: 6 | F17: 6 | G17: 0 | H17: 18 | I17: 324
A18: SLIDE HOR. ROASTER | B18: TH901 | C18: 18.0 | D18: 5 | E18: 5 | F18: 5 | G18: 0 | H18: 15 | I18: 270
A19: APRON | B19: TH901 | C19: 18.0 | D19: 13 | E19: 13 | F19: 13 | G19: 15 | H19: 54 | I19: 972
A20: APRON SEAL BLOCK(A) | B20: TH901 | C20: 8.0 | D20: 13 | E20: 13 | F20: 13 | G20: 0 | H20: 39 | I20: 312
A21: APRON SEAL BLOCK(B) | B21: TH901 | C21: 8.0 | D21: 1 | E21: 1 | F21: 1 | G21: 0 | H21: 3 | I21: 24
A22: 100mm UPPER ROASTER | B22: TH901 | C22: 12.6 | D22: 2 | E22: 2 | F22: 2 | G22: 0 | H22: 6 | I22: 76
A23: 100mm MIDDLE ROASTER | B23: TH901 | C23: 14.6 | D23: 10 | E23: 10 | F23: 10 | G23: 0 | H23: 30 | I23: 438
A24: 100mm END ROASTER | B24: TH901 | C24: 10.1 | D24: 2 | E24: 2 | F24: 2 | G24: 4 | H24: 10 | I24: 101
A25: 300mm RIGHT HOR. ROASTER | B25: TH901 | C25: 31.0 | D25: 1 | E25: 1 | F25: 1 | G25: 0 | H25: 3 | I25: 93
A26: 300mm LEFT HOR. ROASTER | B26: TH901 | C26: 31.0 | D26: 1 | E26: 1 | F26: 1 | G26: 0 | H26: 3 | I26: 93
A27: 100mm HOR. ROASTER CAP | B27: TH901 | C27: 7.9 | D27: 2 | E27: 2 | F27: 2 | G27: 2 | H27: 8 | I27: 63
A28: 100mm APRON | B28: TH901 | C28: 10.9 | D28: 2 | E28: 2 | F28: 2 | G28: 4 | H28: 10 | I28: 109
A29: [합 계] | C29: =SUM(C7:C28) -> 376.5 | D29: =SUM(D7:D28) -> 168 | E29: 168 | F29: 168 | G29: 72 | H29: 576 | I29: 10,587
A32: 2. 화격자 부속품
A33: UPPER ROASTER POSITON PIN | B33: SS400 | D33: UPPER ROASTER POSITION PIN 1EA/각 (M01-073 참조요망) | H33: 39
A34: UPPER ROASTER SPLIT PIN | B34: STS304 | D34: UPPER ROASTER SPLIT PIN 1EA/각 (M01-073 참조요망) | H34: 39
A35: FIXED HOR. ROASTER용 B/S.W | B35: STS304 | D35: BOLT & SPRING WASHER(M20 x 45L x STS304, 2EA/각) | H35: 36
A36: FIXED HOR. ROASTER CAP용 B/S.W | B36: STS304 | D36: BOLT & SPRING WASHER(M20 x 50L x STS304, 4EA/각) | H36: 72
A37: SLIDE HOR. ROASTER용 B/S.W | B37: STS304 | D37: BOLT & SPRING WASHER(M20 x 45L x STS304, 2EA/각) | H37: 30
A38: APRON SEAL BLOCK(A)용 | B38: STS304 | D38: APRON SEAL BLOCK SUPPORT 3EA(M01-073 참조요망) | H38: 117
A39: APRON SEAL BLOCK(B)용 BOLT/S.W | B39: STS304 | D39: BOLT & SPRING WASHER(M20 x 30L x STS304, 1EA/각) | H39: 3
A40: 100mm UPPER ROASTER용 BOLT/S.W | B40: STS304 | D40: BOLT & SPRING WASHER(M20 x 60L x STS304, 1EA/각) | H40: 6
A41: 100mm MIDDLE ROASTER용 BOLT/S.W | B41: STS304 | D41: BOLT & SPRING WASHER(M20 x 60L x STS304, 1EA/각) | H41: 30
A42: 100mm END ROASTER용 BOLT/W | B42: STS304 | D42: BOLT & SPRING WASHER(M20 x 55L x STS304, 1EA/각) | H42: 10
A43: 300mm HOR. ROASTER(R.H)용 B/S.W | B43: STS304 | D43: BOLT & SPRING WASHER(M20 x 45L x STS304, 2EA/각) | H43: 6
A44: 300mm HOR. ROASTER(L.H)용 B/S.W | B44: STS304 | D44: BOLT & SPRING WASHER(M20 x 45L x STS304, 2EA/각) | H44: 6
A45: 100mm HOR. ROASTER CAP용 B/S.W | B45: STS304 | D45: BOLT & SPRING WASHER(M20 x 40L x STS304, 2EA/각) | H45: 16
A46: [합 계] | H46: =SUM(H33:H45) -> 410

Sheet 노임단가 (hidden)
A1: 노 임 단 가
A3: ※ 2025년 상반기 적용 건설업 개별직종 노임단가
A4: 번 호 | B4: 직종명 | F4: 해 설 | L4: 비 고
A6: 1003 | B6: 특별인부 | E6: 221,506 | F6: 보통 인부보다 다소 높은 기능정도를 요하며, 특수한 작업조건하에서 작업하는 사람
A7: 1006 | B7: 비계공 | E7: 279,433 | F7: 비계, 운반대, 작업대, 보호망 등의 설치 및 해체작업에 종사하는 사람
A8: 1057 | B8: 플랜트제관공 | E8: 259,128 | F8: 플랜트(철강, 석유, 제지, 화학, 원자력 및 발전 등의 에너지시설) 시설에서 다른 건설공사보다 엄격한 규격 및 품질보증 요구조건에 따라 강제구조물과 압력용기의 가공, 제작시공 및 보수를 하는 사람(원자력 포함)
A9: 1058 | B9: 플랜트용접공 | E9: 299,776 | F9: 유해가스 이송관 및 유해가스 용기를 용접하거나, 플랜트 기기 및 플랜트 배관을 용접하거나, 철재․강관(합금강제외)을 TIG, MIG 등 용접하거나, 각각의 설계압력이 5kg/㎠이상인 기기 또는 배관의 용접을 하는 사람 (난이도 중․고급수준)
A10: 1060 | B10: 플랜트기계설비공 | E10: 236,640 | F10: 정밀을 요하는 플랜트 기계설비의 조립, 설치, 조정, 검사 및 보수를 하는 사람

Sheet (첨부1) 품셈 13-8-1 (hidden)

Sheet (첨부2) 품셈 4-1-7 (hidden)

Sheet (첨부3) 노임단가 (hidden)
